fUST/lending_fUST_20240215
["ID","MTS","AMOUNT","RATE_DAILY","PERIOD"]
[314084330,1707965444259,-207.92048291,0.00036699,14]
[314084331,1707965444269,-498.94893045,0.00036699,14]
[314084332,1707965444279,-151.0,0.00036699,2]
[314084333,1707965444288,-151.0,0.00036699,2]
[314084334,1707965444298,-151.0,0.00036699,2]
[314084335,1707965444309,-784.43,0.00036699,14]
[314084336,1707965444319,-784.43,0.00036699,14]
[314084337,1707965444328,-784.43,0.00036699,14]
[314084338,1707965444337,-500.0,0.00036699,14]
[314084339,1707965444346,-500.0,0.00036699,14]
[314084340,1707965444355,-500.0,0.00036699,14]
[314084341,1707965444364,-500.0,0.00036699,14]
[314084342,1707965444374,-500.0,0.00036699,14]
[314084343,1707965444383,-513.66558092,0.00036699,14]
[314084344,1707965444393,-18813.72,0.00036699,14]
[314084345,1707965444403,-18813.72,0.00036699,14]
[314084346,1707965444414,-18813.72,0.00036699,14]
[314084347,1707965444424,-151.0,0.00036699,2]
[314084348,1707965444433,-151.0,0.00036699,2]
[314084349,1707965444444,-151.0,0.00036699,2]
[314084350,1707965444454,-616.94,0.00036699,14]
[314084351,1707965444464,-800.81,0.00036699,14]
[314084352,1707965444475,-800.81,0.00036699,14]
[314084353,1707965444486,-800.81,0.00036699,14]
[314084354,1707965444497,-516.42054107,0.00036699,14]
[314084355,1707965444509,-18068.88,0.00036699,14]
[314084356,1707965444520,-18068.88,0.00036699,14]
[314084357,1707965444530,-12706.9962939,0.00036699,14]
[314084358,1707965444583,-437.90229,0.00036699,14]
[314084359,1707965444953,-159.0,0.00033,2]
[314084360,1707965444963,-159.0,0.00034521,2]
[314084361,1707965444974,-1236.51,0.00036688,3]
[314084362,1707965444983,-4923.9814161,0.00036699,14]
[314084363,1707965444993,-500.0,0.00036699,14]
[314084364,1707965445003,-500.0,0.00036699,14]
[314084365,1707965445012,-500.0,0.00036699,14]
[314084366,1707965445022,-500.0,0.00036699,14]
[314084367,1707965445031,-501.31406295,0.00036699,14]
[314084368,1707965445041,-6029.21,0.00036699,14]
[314084369,1707965445052,-2077.06977095,0.00036699,14]
[314084373,1707965446295,-3952.14022905,0.00036699,14]
[314084374,1707965446305,-6029.21,0.00036699,14]
[314084375,1707965446314,-500.0,0.00036699,14]
[314084376,1707965446323,-500.0,0.00036699,14]
[314084377,1707965446332,-500.0,0.00036699,14]
[314084378,1707965446342,-832.95,0.00036699,14]
[314084379,1707965446352,-500.0,0.00036699,14]
[314084381,1707965446361,-522.38648943,0.00036699,14]
[314084382,1707965446370,-500.0,0.00036699,14]
[314084383,1707965446455,-500.0,0.00036699,14]
[314084384,1707965446465,-500.0,0.00036699,14]
[314084385,1707965446474,-1617.56,0.00036699,14]
[314084386,1707965446485,-151.0,0.00036699,2]
[314084387,1707965446499,-151.0,0.00036699,2]
[314084388,1707965446510,-151.0,0.00036699,2]
[314084389,1707965446520,-151.0,0.00036699,2]
[314084390,1707965446532,-151.0,0.00036699,2]
[314084391,1707965446541,-151.0,0.00036699,2]
[314084392,1707965446550,-151.0,0.00036699,2]
[314084393,1707965446559,-151.0,0.00036699,2]
[314084394,1707965446567,-185.313234,0.00036699,2]
[314084395,1707965446577,-10508.69,0.00036699,14]
[314084396,1707965446586,-4794.69953662,0.00036699,14]
[314084397,1707965621159,233.93845851,0.00021,2]
[314084399,1707965662320,13776.3466405,0.00021,2]
[314084400,1707965663330,385.47234835,0.00021,2]
[314084401,1707965782506,-5000.0,0.00022,2]
[314084402,1707965783611,-712.05210291,0.00022,2]
[314084403,1707965783635,-605.72023374,0.00022,2]
[314084404,1707965783658,-3682.22766335,0.0002259,2]
[314084405,1707965784530,-3775.20852332,0.0002259,2]
[314084442,1707966633390,-392.58073794,0.00025297,2]
[314084443,1707966633408,-1247.88869023,0.00025297,2]
[314084444,1707966633418,-664.13828514,0.00026532,2]
[314084445,1707966633428,-1876.71362758,0.000278,2]
[314084460,1707966638448,-1036.31636846,0.000278,2]
[314084462,1707966638460,-11767.04287415,0.000278,2]
[314084464,1707966638469,-622.20691426,0.00027859,2]
[314084466,1707966638478,-168.101291,0.0002915,2]
[314084468,1707966638487,-620.11034571,0.00029252,2]
[314084470,1707966638497,-4577.54820717,0.0003,5]
[314084472,1707966638506,-200.0,0.00030579,15]
[314084474,1707966638515,-7739.60289771,0.00032137,5]
[314084476,1707966638524,-7959.32008497,0.00032156,5]
[314084478,1707966638533,-2419.20179099,0.00032156,5]
[314084480,1707966638542,-6841.6133064,0.00032307,2]
[314084482,1707966638551,-168.101291,0.00033123,2]
[314084484,1707966638560,-280.0,0.00033637,15]
[314084486,1707966638570,-151.22532574,0.00033924,7]
[314084488,1707966638580,-493.30943959,0.00034599,2]
[314084490,1707966638589,-151.22532574,0.00034616,4]
[314084492,1707966638599,-151.22532574,0.00035323,2]
[314084494,1707966638607,-155.0,0.00035599,2]
[314084496,1707966638616,-500.0,0.00035616,14]
[314084498,1707966638626,-563.91,0.00035999,14]
[314084500,1707966638635,-8835.0347218,0.00036,2]
[314084502,1707966638645,-561.41716252,0.00036,3]
[314084504,1707966638655,-346.27020784,0.00036499,14]
[314084506,1707966638664,-500.0,0.00036499,14]
[314084508,1707966638673,-155.83992726,0.00036516,2]
[314084510,1707966638683,-939.03,0.00036586,3]
[314084512,1707966638692,-873.92,0.00036586,3]
[314084514,1707966638701,-728.27,0.00036586,3]
[314084516,1707966638710,-606.89,0.00036586,3]
[314084518,1707966638719,-500.0,0.00036596,14]
[314084520,1707966638729,-500.0,0.00036596,14]
[314084522,1707966638738,-297.50701563,0.00036596,14]
[314084524,1707966638748,-500.0,0.00036596,14]
[314084526,1707966638757,-500.0,0.00036596,14]
[314084528,1707966638766,-500.0,0.00036596,14]
[314084530,1707966638775,-1397.06,0.00036596,14]
[314084532,1707966638784,-500.0,0.00036596,14]
[314084534,1707966638793,-500.0,0.00036596,14]
[314084536,1707966638803,-616.94,0.00036596,14]
[314084538,1707966638812,-6100.87,0.00036596,14]
[314084540,1707966638821,-500.0,0.00036596,14]
[314084541,1707966638831,-232.65880358,0.00036596,15]
[314084543,1707966638840,-294.44320783,0.00036596,15]
[314084545,1707966638849,-422.64313692,0.00036596,15]
[314084547,1707966638859,-500.0,0.00036596,15]
[314084549,1707966638870,-573.41514512,0.00036596,15]
[314084551,1707966638879,-500.0,0.00036596,15]
[314084553,1707966638888,-500.0,0.00036596,15]
[314084555,1707966638897,-500.0,0.00036596,15]
[314084557,1707966638907,-500.0,0.00036596,15]
[314084559,1707966638917,-500.0,0.00036596,15]
[314084561,1707966638927,-534.30204635,0.00036596,14]
[314084563,1707966638935,-509.89484034,0.00036596,14]
[314084565,1707966638944,-893.08,0.00036596,14]
[314084567,1707966638954,-500.0,0.00036596,14]
[314084568,1707966638963,-798.24,0.00036596,14]
[314084570,1707966638972,-1571.0,0.00036596,14]
[314084572,1707966638981,-5646.04,0.00036596,14]
[314084574,1707966638990,-500.0,0.00036596,14]
[314084575,1707966638999,-500.0,0.00036596,14]
[314084577,1707966639008,-14439.97,0.00036596,14]
[314084578,1707966639017,-500.0,0.00036596,14]
[314084579,1707966639026,-502.42635629,0.00036597,14]
[314084580,1707966639035,-517.23573722,0.00036597,2]
[314084581,1707966639044,-285.50953037,0.00036597,14]
[314084582,1707966639053,-510.46755575,0.00036597,14]
[314084583,1707966639062,-500.0,0.00036597,14]
[314084584,1707966639071,-500.0,0.00036597,14]
[314084585,1707966639081,-500.0,0.00036597,14]
[314084586,1707966639090,-341.64136384,0.00036597,14]
[314084587,1707966639100,-500.0,0.00036597,14]
[314084588,1707966639109,-500.0,0.00036597,14]
[314084589,1707966639118,-500.0,0.00036597,14]
[314084590,1707966639129,-500.0,0.00036597,14]
[314084591,1707966639139,-500.0,0.00036597,14]
[314084592,1707966639148,-500.0,0.00036597,14]
[314084593,1707966639157,-500.0,0.00036597,14]
[314084594,1707966639166,-513.20929343,0.00036597,14]
[314084595,1707966639175,-514.48086761,0.00036597,14]
[314084596,1707966639185,-500.0,0.00036597,14]
[314084598,1707966639194,-569.62856393,0.00036597,14]
[314084600,1707966639203,-195.99445327,0.00036597,14]
[314084602,1707966639212,-500.0,0.00036597,14]
[314084604,1707966639221,-515.87291042,0.00036597,14]
[314084606,1707966639231,-500.0,0.00036597,14]
[314084608,1707966639239,-500.0,0.00036597,14]
[314084610,1707966639249,-500.0,0.00036597,14]
[314084612,1707966639257,-500.0,0.00036597,14]
[314084614,1707966639266,-500.0,0.00036597,14]
[314084616,1707966639276,-339.46078471,0.00036597,14]
[314084618,1707966639285,-500.0,0.00036597,14]
[314084620,1707966639294,-505.07339131,0.00036597,14]
[314084622,1707966639304,-500.0,0.00036597,14]
[314084624,1707966639316,-500.0,0.00036597,14]
[314084626,1707966639326,-500.0,0.00036597,14]
[314084628,1707966639336,-201.48289364,0.00036597,14]
[314084630,1707966639345,-530.35047603,0.00036597,14]
[314084632,1707966639354,-184.23353177,0.00036597,14]
[314084634,1707966639363,-514.93351127,0.00036597,14]
[314084636,1707966639372,-500.0,0.00036597,14]
[314084638,1707966639382,-500.0,0.00036597,14]
[314084640,1707966639391,-500.0,0.00036597,14]
[314084642,1707966639401,-500.0,0.00036597,14]
[314084644,1707966639410,-500.0,0.00036597,14]
[314084646,1707966639419,-500.0,0.00036597,14]
[314084648,1707966639428,-519.08200946,0.00036597,14]
[314084650,1707966639438,-547.99777768,0.00036597,14]
[314084652,1707966639447,-521.19648572,0.00036597,14]
[314084654,1707966639455,-500.0,0.00036597,14]
[314084656,1707966639464,-511.58957897,0.00036597,14]
[314084657,1707966639473,-500.0,0.00036597,14]
[314084659,1707966639483,-512.63857938,0.00036597,14]
[314084661,1707966639492,-516.94149683,0.00036597,14]
[314084663,1707966639501,-500.0,0.00036597,14]
[314084665,1707966639510,-500.0,0.00036597,14]
[314084667,1707966639518,-557.77740763,0.00036597,14]
[314084669,1707966639527,-500.0,0.00036597,14]
[314084671,1707966639537,-500.0,0.00036597,14]
[314084673,1707966639546,-500.0,0.00036597,14]
[314084675,1707966639555,-500.0,0.00036597,14]
[314084677,1707966639564,-500.0,0.00036597,14]
[314084679,1707966639573,-500.0,0.00036597,14]
[314084681,1707966639582,-556.80413049,0.00036597,14]
[314084683,1707966639592,-788.46,0.00036597,14]
[314084685,1707966639601,-788.46,0.00036597,14]
[314084687,1707966639611,-788.46,0.00036597,14]
[314084689,1707966639619,-788.46,0.00036597,14]
[314084691,1707966639629,-788.46,0.00036597,14]
[314084693,1707966639638,-500.0,0.00036597,14]
[314084695,1707966639648,-507.8299765,0.00036597,14]
[314084697,1707966639657,-500.0,0.00036597,14]
[314084699,1707966639666,-507.63960265,0.00036597,14]
[314084701,1707966639675,-500.0,0.00036597,14]
[314084703,1707966639684,-500.0,0.00036597,14]
[314084705,1707966639693,-504.05717715,0.00036597,14]
[314084707,1707966639702,-319.76398129,0.00036597,14]
[314084709,1707966639712,-500.0,0.00036597,14]
[314084711,1707966639721,-391.32695185,0.00036597,14]
[314084713,1707966639730,-501.74485484,0.00036597,14]
[314084715,1707966639739,-562.6,0.00036597,14]
[314084717,1707966639749,-500.0,0.00036597,14]
[314084719,1707966639757,-557.04962915,0.00036597,14]
[314084721,1707966639768,-506.57653874,0.00036597,14]
[314084723,1707966639777,-500.0,0.00036597,14]
[314084724,1707966639785,-401.84311323,0.00036597,14]
[314084727,1707966639795,-500.0,0.00036597,14]
[314084728,1707966639805,-500.0,0.00036597,14]
[314084730,1707966639814,-500.0,0.00036597,14]
[314084732,1707966639824,-500.0,0.00036597,14]
[314084734,1707966639834,-503.32932476,0.00036597,14]
[314084736,1707966639843,-266.15669203,0.00036597,14]
[314084739,1707966639853,-500.0,0.00036597,14]
[314084740,1707966639862,-500.0,0.00036597,14]
[314084742,1707966639872,-500.0,0.00036597,14]
[314084744,1707966639881,-1311.13,0.00036597,14]
[314084746,1707966639890,-500.0,0.00036597,14]
[314084748,1707966639899,-880.96,0.00036597,14]
[314084750,1707966639908,-500.0,0.00036597,14]
[314084752,1707966639917,-439.02807789,0.00036597,14]
[314084754,1707966639926,-508.6563458,0.00036597,14]
[314084756,1707966639936,-500.0,0.00036597,14]
[314084758,1707966639945,-8204.27,0.00036597,14]
[314084760,1707966639955,-500.0,0.00036597,14]
[314084762,1707966639964,-7341.97,0.00036597,14]
[314084764,1707966639973,-489.82980321,0.00036597,14]
[314084766,1707966639982,-500.0,0.00036597,14]
[314084768,1707966639991,-212.18676146,0.00036597,14]
[314084770,1707966640000,-302.19009296,0.00036597,14]
[314084772,1707966640010,-500.0,0.00036597,14]
[314084774,1707966640019,-3066.59,0.00036597,14]
[314084776,1707966640028,-511.00343445,0.00036597,14]
[314084777,1707966640037,-506.64152875,0.00036597,14]
[314084779,1707966640046,-506.67888826,0.00036597,14]
[314084781,1707966640056,-500.0,0.00036597,14]
[314084783,1707966640066,-500.0,0.00036597,14]
[314084785,1707966640075,-501.80989892,0.00036597,14]
[314084787,1707966640084,-784.43,0.00036597,14]
[314084789,1707966640093,-500.0,0.00036597,14]
[314084791,1707966640102,-503.4326383,0.00036597,14]
[314084793,1707966640111,-500.0,0.00036597,14]
[314084795,1707966640120,-500.0,0.00036597,14]
[314084797,1707966640129,-500.0,0.00036597,14]
[314084799,1707966640138,-500.0,0.00036597,14]
[314084801,1707966640147,-504.24519245,0.00036597,14]
[314084803,1707966640156,-500.0,0.00036597,14]
[314084805,1707966640165,-518.96,0.00036597,14]
[314084807,1707966640174,-503.4400308,0.00036597,14]
[314084809,1707966640184,-500.0,0.00036597,14]
[314084811,1707966640193,-315.01598404,0.00036597,14]
[314084813,1707966640203,-503.2226325,0.00036597,14]
[314084815,1707966640212,-528.03076737,0.00036597,14]
[314084817,1707966640221,-18813.72,0.00036597,14]
[314084819,1707966640231,-500.0,0.00036597,14]
[314084821,1707966640241,-544.11636985,0.00036597,14]
[314084823,1707966640251,-800.81,0.00036597,14]
[314084825,1707966640261,-505.77159695,0.00036597,14]
[314084827,1707966640270,-500.0,0.00036597,14]
[314084836,1707966640354,-516.42054107,0.00036597,14]
[314084838,1707966640364,-500.0,0.00036597,14]
[314084839,1707966640373,-574.18027158,0.00036597,14]
[314084841,1707966640383,-18040.08,0.00036597,14]
[314084843,1707966640393,-510.79586648,0.00036597,14]
[314084845,1707966640403,-322.27829727,0.00036597,14]
[314084846,1707966640412,-506.21858276,0.00036597,14]
[314084848,1707966640421,-5342.24,0.00036597,14]
[314084850,1707966640431,-563.91,0.00036597,14]
[314084852,1707966640440,-563.91,0.00036597,14]
[314084853,1707966640449,-563.91,0.00036597,14]
[314084855,1707966640459,-563.91,0.00036597,14]
[314084857,1707966640468,-563.91,0.00036597,14]
[314084859,1707966640477,-500.0,0.00036597,14]
[314084860,1707966640487,-500.0,0.00036597,14]
[314084862,1707966640496,-500.0,0.00036597,14]
[314084864,1707966640506,-500.0,0.00036597,14]
[314084866,1707966640515,-500.0,0.00036597,7]
[314084869,1707966640524,-500.0,0.00036597,14]
[314084870,1707966640534,-500.0,0.00036597,14]
[314084872,1707966640543,-500.0,0.00036598,14]
[314084874,1707966640551,-500.0,0.00036598,14]
[314084876,1707966640560,-498.94893045,0.00036598,14]
[314084877,1707966640571,-411.05867098,0.00036598,14]
[314084879,1707966640580,-500.0,0.00036598,14]
[314084881,1707966640590,-256.03233375,0.00036598,14]
[314084883,1707966640598,-788.46,0.00036598,14]
[314084885,1707966640607,-788.46,0.00036598,14]
[314084886,1707966640616,-788.46,0.00036598,14]
[314084888,1707966640625,-788.46,0.00036598,14]
[314084890,1707966640634,-788.46,0.00036598,14]
[314084891,1707966640643,-788.46,0.00036598,14]
[314084893,1707966640652,-788.46,0.00036598,14]
[314084895,1707966640660,-563.91,0.00036598,14]
[314084896,1707966640669,-563.91,0.00036598,14]
[314084898,1707966640678,-563.91,0.00036598,14]
[314084899,1707966640686,-563.91,0.00036598,14]
[314084900,1707966640695,-563.91,0.00036598,14]
[314084902,1707966640704,-563.91,0.00036598,14]
[314084904,1707966640713,-563.91,0.00036598,14]
[314084905,1707966640724,-669.0,0.00036598,3]
[314084907,1707966640734,-276000.0,0.00036599,2]
[314084909,1707966640743,-500.0,0.00036599,14]
[314084910,1707966640752,-151.0,0.00036599,2]
[314084912,1707966640761,-151.0,0.00036599,2]
[314084914,1707966640770,-151.0,0.00036599,2]
[314084915,1707966640779,-788.46,0.00036694,14]
[314084917,1707966640788,-563.91,0.00036694,14]
[314084918,1707966640796,-788.46,0.00036695,14]
[314084920,1707966640805,-788.46,0.00036695,14]
[314084922,1707966640814,-788.46,0.00036695,14]
[314084923,1707966640824,-788.46,0.00036695,14]
[314084925,1707966640833,-788.46,0.00036695,14]
[314084927,1707966640842,-788.46,0.00036695,14]
[314084929,1707966640851,-788.46,0.00036695,14]
[314084931,1707966640860,-788.46,0.00036695,14]
[314084932,1707966640869,-788.46,0.00036695,14]
[314084934,1707966640880,-788.46,0.00036695,14]
[314084936,1707966640890,-788.66353182,0.00036695,14]
[314084938,1707966640899,-151.0,0.00036695,2]
[314084939,1707966640908,-155.192664,0.00036695,2]
[314084941,1707966640918,-151.0,0.00036695,2]
[314084943,1707966640927,-151.0,0.00036695,2]
[314084944,1707966640936,-563.91,0.00036695,14]
[314084946,1707966640945,-563.91,0.00036695,14]
[314084948,1707966640954,-563.91,0.00036695,14]
[314084950,1707966640963,-563.91,0.00036695,14]
[314084952,1707966640972,-563.91,0.00036695,14]
[314084953,1707966640982,-563.91,0.00036695,14]
[314084955,1707966640992,-563.91,0.00036695,14]
[314084957,1707966641001,-563.91,0.00036695,14]
[314084959,1707966641010,-563.91,0.00036695,14]
[314084961,1707966641019,-564.08172213,0.00036695,14]
[314084962,1707966641029,-503.19472331,0.00036696,14]
[314084964,1707966641038,-151.0,0.00036696,2]
[314084966,1707966641046,-151.0,0.00036696,2]
[314084968,1707966641055,-500.0,0.00036696,14]
[314084969,1707966641064,-548.30171102,0.00036696,14]
[314084971,1707966641075,-504.70722091,0.00036696,14]
[314084973,1707966641084,-176.764142,0.00036696,2]
[314084974,1707966641093,-151.0,0.00036696,2]
[314084976,1707966641102,-234.08969,0.00036696,2]
[314084978,1707966641111,-350.83926619,0.00036696,15]
[314084980,1707966641120,-500.0,0.00036696,15]
[314084982,1707966641130,-500.0,0.00036696,15]
[314084983,1707966641139,-500.0,0.00036696,15]
[314084985,1707966641148,-500.0,0.00036696,15]
[314084987,1707966641158,-279.85864889,0.00036696,15]
[314084989,1707966641167,-500.0,0.00036696,15]
[314084991,1707966641176,-486.08525232,0.00036696,15]
[314084992,1707966641185,-293.91639331,0.00036696,15]
[314084994,1707966641195,-500.0,0.00036696,15]
[314084996,1707966641204,-500.0,0.00036696,15]
[314084998,1707966641213,-500.0,0.00036696,15]
[314085000,1707966641224,-500.0,0.00036696,15]
[314085001,1707966641233,-500.0,0.00036696,15]
[314085003,1707966641242,-151.0,0.00036697,2]
[314085005,1707966641251,-500.0,0.00036697,14]
[314085007,1707966641260,-503.03626653,0.00036697,14]
[314085009,1707966641270,-748.66,0.00036697,14]
[314085011,1707966641279,-748.66,0.00036697,14]
[314085012,1707966641288,-748.66,0.00036697,14]
[314085014,1707966641297,-748.66,0.00036697,14]
[314085016,1707966641307,-748.66,0.00036697,14]
[314085018,1707966641319,-748.66,0.00036697,14]
[314085020,1707966641329,-748.66,0.00036697,14]
[314085022,1707966641338,-748.66,0.00036697,14]
[314085023,1707966641347,-748.66,0.00036697,14]
[314085025,1707966641357,-500.0,0.00036697,14]
[314085027,1707966641366,-500.0,0.00036697,14]
[314085029,1707966641375,-500.0,0.00036697,14]
[314085031,1707966641385,-500.0,0.00036697,14]
[314085033,1707966641395,-500.0,0.00036697,14]
[314085034,1707966641404,-500.0,0.00036697,14]
[314085036,1707966641414,-500.0,0.00036697,14]
[314085038,1707966641424,-500.0,0.00036697,14]
[314085040,1707966641433,-500.0,0.00036697,14]
[314085042,1707966641442,-752.14,0.00036697,14]
[314085043,1707966641451,-752.14,0.00036697,14]
[314085045,1707966641460,-752.14,0.00036697,14]
[314085047,1707966641469,-752.14,0.00036697,14]
[314085049,1707966641479,-752.14,0.00036697,14]
[314085051,1707966641488,-752.14,0.00036697,14]
[314085052,1707966641497,-752.14,0.00036697,14]
[314085054,1707966641506,-752.14,0.00036697,14]
[314085056,1707966641515,-752.14,0.00036697,14]
[314085058,1707966641524,-500.0,0.00036697,14]
[314085060,1707966641534,-500.0,0.00036697,14]
[314085062,1707966641542,-500.0,0.00036697,14]
[314085063,1707966641551,-500.0,0.00036697,14]
[314085065,1707966641560,-500.0,0.00036697,14]
[314085067,1707966641570,-500.0,0.00036697,14]
[314085069,1707966641581,-500.0,0.00036697,14]
[314085071,1707966641589,-500.0,0.00036697,14]
[314085073,1707966641598,-500.0,0.00036697,14]
[314085074,1707966641607,-500.0,0.00036697,14]
[314085076,1707966641615,-500.0,0.00036697,14]
[314085078,1707966641624,-507.23474136,0.00036697,14]
[314085080,1707966641635,-500.0,0.00036697,14]
[314085082,1707966641644,-500.0,0.00036697,14]
[314085084,1707966641654,-500.0,0.00036697,14]
[314085086,1707966641663,-500.0,0.00036697,14]
[314085087,1707966641672,-500.0,0.00036697,14]
[314085089,1707966641681,-500.0,0.00036697,14]
[314085091,1707966641690,-500.0,0.00036697,14]
[314085093,1707966641699,-500.0,0.00036697,14]
[314085095,1707966641708,-610.93469441,0.00036697,14]
[314085096,1707966641718,-2428.12,0.00036697,7]
[314085098,1707966641727,-2428.12,0.00036697,7]
[314085100,1707966641736,-2428.12,0.00036697,7]
[314085102,1707966641744,-2428.12,0.00036697,7]
[314085103,1707966641753,-2428.12,0.00036697,7]
[314085105,1707966641762,-2428.12,0.00036697,7]
[314085107,1707966641771,-2428.12,0.00036697,7]
[314085109,1707966641780,-2428.12,0.00036697,7]
[314085111,1707966641789,-2428.12,0.00036697,7]
[314085112,1707966641798,-151.0,0.00036697,2]
[314085113,1707966641810,-151.0,0.00036697,2]
[314085114,1707966641818,-151.0,0.00036697,2]
[314085115,1707966641829,-564.36544628,0.00036698,14]
[314085116,1707966641837,-500.0,0.00036698,14]
[314085117,1707966641846,-503.17223067,0.00036698,14]
[314085118,1707966641855,-500.0,0.00036698,14]
[314085119,1707966641863,-345.27422997,0.00036698,14]
[314085120,1707966641872,-504.44493747,0.00036698,14]
[314085121,1707966641881,-500.0,0.00036698,14]
[314085122,1707966641890,-500.0,0.00036698,14]
[314085123,1707966641899,-500.0,0.00036698,14]
[314085124,1707966641907,-500.0,0.00036698,14]
[314085125,1707966641916,-500.0,0.00036698,14]
[314085126,1707966641925,-179.94784174,0.00036698,14]
[314085127,1707966641933,-508.34219486,0.00036698,14]
[314085128,1707966641942,-506.53630719,0.00036698,14]
[314085129,1707966641951,-500.0,0.00036698,14]
[314085131,1707966641961,-333.62986552,0.00036698,14]
[314085133,1707966641969,-551.44609297,0.00036698,14]
[314085135,1707966641978,-500.0,0.00036698,14]
[314085137,1707966641987,-500.0,0.00036698,14]
[314085139,1707966641997,-500.0,0.00036698,14]
[314085141,1707966642006,-500.0,0.00036698,14]
[314085143,1707966642015,-500.0,0.00036698,14]
[314085145,1707966642024,-500.0,0.00036698,14]
[314085147,1707966642033,-456.75762015,0.00036698,14]
[314085149,1707966642042,-500.0,0.00036698,14]
[314085151,1707966642051,-500.0,0.00036698,14]
[314085153,1707966642060,-500.0,0.00036698,14]
[314085155,1707966642069,-500.0,0.00036698,14]
[314085157,1707966642078,-500.0,0.00036698,14]
[314085159,1707966642087,-500.0,0.00036698,14]
[314085161,1707966642096,-395.21870062,0.00036698,14]
[314085163,1707966642105,-151.0,0.00036698,2]
[314085165,1707966642115,-159.826059,0.00036698,2]
[314085167,1707966642124,-502.96749761,0.00036698,14]
[314085169,1707966642133,-503.59517549,0.00036698,14]
[314085171,1707966642142,-503.68135752,0.00036698,14]
[314085173,1707966642151,-504.68343651,0.00036698,14]
[314085175,1707966642160,-502.27692986,0.00036698,14]
[314085177,1707966642169,-500.0,0.00036698,14]
[314085179,1707966642178,-265.94803034,0.00036698,14]
[314085182,1707966642187,-500.0,0.00036698,14]
[314085183,1707966642196,-500.0,0.00036698,14]
[314085185,1707966642205,-500.0,0.00036698,14]
[314085188,1707966642215,-500.0,0.00036698,14]
[314085189,1707966642224,-500.0,0.00036698,14]
[314085192,1707966642233,-500.0,0.00036698,14]
[314085193,1707966642242,-500.0,0.00036698,14]
[314085195,1707966642252,-500.0,0.00036698,14]
[314085197,1707966642261,-500.0,0.00036698,14]
[314085200,1707966642271,-542.99508916,0.00036698,14]
[314085201,1707966642279,-500.0,0.00036698,14]
[314085204,1707966642289,-500.0,0.00036698,14]
[314085206,1707966642300,-500.0,0.00036698,14]
[314085207,1707966642310,-500.0,0.00036698,14]
[314085209,1707966642321,-500.0,0.00036698,14]
[314085211,1707966642330,-502.47326589,0.00036698,14]
[314085221,1707966642407,-500.0,0.00036698,14]
[314085223,1707966642417,-240.52991629,0.00036698,14]
[314085225,1707966642426,-555.85105106,0.00036698,14]
[314085227,1707966642435,-171.89335008,0.00036698,14]
[314085229,1707966642444,-502.74075274,0.00036698,14]
[314085231,1707966642453,-641.09533347,0.00036698,14]
[314085233,1707966642461,-506.64620486,0.00036698,14]
[314085235,1707966642470,-502.28027569,0.00036698,14]
[314085237,1707966642481,-500.0,0.00036698,14]
[314085238,1707966642490,-504.2872166,0.00036698,14]
[314085240,1707966642500,-500.0,0.00036698,14]
[314085243,1707966642510,-500.0,0.00036698,14]
[314085244,1707966642519,-500.0,0.00036698,14]